fUSD/lending_fUSD_20241106
["ID","MTS","AMOUNT","RATE_DAILY","PERIOD"]
[341435798,1730881843335,-500.0,0.00037808,14]
[341435800,1730881843344,-500.0,0.00037808,14]
[341435802,1730881843353,-500.0,0.00037808,14]
[341435803,1730881843362,-500.0,0.00037808,14]
[341435804,1730881843371,-500.0,0.00037808,14]
[341435805,1730881843381,-500.0,0.00037808,14]
[341435806,1730881843390,-500.0,0.00037808,14]
[341435807,1730881843399,-500.0,0.00037808,14]
[341435808,1730881843408,-500.0,0.00037808,14]
[341435809,1730881843417,-500.0,0.00037808,14]
[341435810,1730881843426,-500.0,0.00037808,14]
[341435811,1730881843436,-500.0,0.00037808,14]
[341435812,1730881843445,-500.0,0.00037808,14]
[341435813,1730881843454,-500.0,0.00037808,14]
[341435814,1730881843463,-502.05279396,0.00037808,14]
[341435815,1730881843473,-500.0,0.00037808,7]
[341435816,1730881843482,-500.0,0.00037808,7]
[341435817,1730881843491,-500.0,0.00037808,7]
[341435818,1730881843500,-500.0,0.00037808,7]
[341435819,1730881843509,-500.0,0.00037808,14]
[341435820,1730881843519,-500.0,0.00037808,14]
[341435821,1730881843528,-500.0,0.00037808,14]
[341435822,1730881843537,-500.0,0.00037808,14]
[341435823,1730881843548,-500.0,0.00037808,14]
[341435824,1730881843557,-500.0,0.00037808,14]
[341435825,1730881843566,-500.0,0.00037808,14]
[341435826,1730881843575,-500.0,0.00037808,14]
[341435827,1730881843584,-500.0,0.00037808,14]
[341435828,1730881843593,-500.0,0.00037808,14]
[341435829,1730881843603,-575.17728657,0.00037808,14]
[341435830,1730881843614,-514.11846429,0.00037808,14]
[341435831,1730881843623,-500.0,0.00037808,14]
[341435832,1730881843632,-457.12394845,0.00037808,14]
[341435833,1730881843645,-42.87605155,0.00037808,14]
[341435834,1730881843654,-500.0,0.00037808,14]
[341435835,1730881843665,-500.0,0.00037808,14]
[341435836,1730881843674,-500.0,0.00037808,14]
[341435837,1730881843685,-500.0,0.00037808,14]
[341435838,1730881843695,-500.0,0.00037808,14]
[341435839,1730881843704,-500.0,0.00037808,14]
[341435840,1730881843713,-500.0,0.00037808,14]
[341435841,1730881843722,-110.67394845,0.00037808,14]
[341435842,1730881843741,-389.32605155,0.00037808,14]
[341435843,1730881843751,-500.0,0.00037808,14]
[341435844,1730881843761,-500.0,0.00037808,14]
[341435845,1730881843769,-500.0,0.00037808,14]
[341435846,1730881843778,-355.97,0.00037808,14]
[341435847,1730881843787,-543.25968108,0.00037808,14]
[341435848,1730881843801,-500.0,0.00037808,14]
[341435849,1730881843813,-258.02163947,0.00037808,14]
[341435850,1730881843822,-500.0,0.00037808,14]
[341435851,1730881843832,-500.0,0.00037808,14]
[341435852,1730881843841,-500.0,0.00037808,14]
[341435853,1730881843850,-500.0,0.00037808,14]
[341435854,1730881843859,-500.0,0.00037808,14]
[341435855,1730881843868,-504.36098974,0.00037808,14]
[341435856,1730881843878,-500.0,0.00037808,14]
[341435857,1730881843887,-500.0,0.00037808,14]
[341435858,1730881843897,-392.16535173,0.00037808,14]
[341435859,1730881843907,-608.36,0.00037808,14]
[341435860,1730881843918,-500.0,0.00037808,14]
[341435861,1730881843927,-524.16173389,0.00037808,14]
[341435862,1730881843936,-500.0,0.00037808,14]
[341435863,1730881843946,-500.0,0.00037808,14]
[341435864,1730881843955,-528.44661748,0.00037808,14]
[341435865,1730881843966,-500.0,0.00037808,14]
[341435866,1730881843975,-449.99908462,0.00037808,14]
[341435867,1730881844015,-50.00091538,0.00037808,14]
[341435868,1730881844024,-68.54369107,0.00037808,14]
[341435869,1730881844238,-431.45630893,0.00037808,14]
[341435870,1730881844247,-358.38034299,0.00037808,14]
[341435871,1730881844259,-141.61965701,0.00037808,14]
[341435872,1730881844269,-500.0,0.00037808,14]
[341435873,1730881844278,-500.0,0.00037808,14]
[341435874,1730881844287,-201.6,0.00037808,14]
[341435875,1730881844298,-510.28295362,0.00037808,14]
[341435876,1730881844307,-66.49718937,0.00037808,14]
[341435879,1730881845622,-972.96124,0.0003764,15]
[341435880,1730881845737,-373.19006063,0.0003764,15]
[341435881,1730881845747,-467.09586608,0.00037761,2]
[341435882,1730881845760,-154.20220439,0.00037761,2]
[341435883,1730881845770,-433.50281063,0.00037808,14]
[341435884,1730881845779,-500.0,0.00037808,14]
[341435885,1730881845789,-500.0,0.00037808,14]
[341435886,1730881845800,-279.26,0.00037808,14]
[341435887,1730881845809,-500.0,0.00037808,14]
[341435888,1730881845819,-500.0,0.00037808,14]
[341435889,1730881845829,-500.0,0.00037808,14]
[341435890,1730881845838,-500.0,0.00037808,14]
[341435891,1730881845848,-500.0,0.00037808,14]
[341435892,1730881845858,-500.0,0.00037808,14]
[341435893,1730881845868,-500.0,0.00037808,14]
[341435894,1730881845878,-571.85007895,0.00037808,14]
[341435895,1730881845888,-500.0,0.00037808,14]
[341435896,1730881845898,-500.0,0.00037808,14]
[341435897,1730881845908,-500.0,0.00037808,14]
[341435898,1730881845919,-376.94206897,0.00037808,14]
[341435899,1730881845929,-501.95796552,0.00037808,14]
[341435900,1730881845939,-500.0,0.00037808,14]
[341435901,1730881845949,-500.0,0.00037808,14]
[341435902,1730881845959,-500.0,0.00037808,14]
[341435903,1730881845969,-500.0,0.00037808,14]
[341435904,1730881845979,-500.0,0.00037808,14]
[341435905,1730881845990,-500.0,0.00037808,14]
[341435906,1730881846000,-2143.06,0.00037808,14]
[341435907,1730881846010,-1213.76236554,0.00037808,14]
[341435908,1730881846083,-68.50910443,0.00037808,14]
[341435911,1730881846276,-264.31500564,0.00037808,14]
[341435912,1730881846288,-596.47352439,0.00037808,14]
[341435913,1730881846298,-500.0,0.00037808,14]
[341435914,1730881846310,-500.0,0.00037808,14]
[341435915,1730881846323,-500.0,0.00037808,14]
[341435916,1730881846332,-500.0,0.00037808,14]
[341435917,1730881846342,-500.0,0.00037808,14]
[341435918,1730881846351,-500.0,0.00037808,14]
[341435919,1730881846361,-500.0,0.00037808,14]
[341435920,1730881846371,-500.0,0.00037808,14]
[341435921,1730881846381,-500.0,0.00037808,2]
[341435922,1730881846390,-500.0,0.00037808,14]
[341435923,1730881846400,-500.0,0.00037808,14]
[341435924,1730881846409,-500.0,0.00037808,14]
[341435925,1730881846419,-500.0,0.00037808,14]
[341435926,1730881846429,-500.0,0.00037808,14]
[341435927,1730881846438,-500.0,0.00037808,14]
[341435928,1730881846447,-280.2547341,0.00037808,14]
[341435929,1730881846457,-500.0,0.00037808,14]
[341435930,1730881846466,-500.0,0.00037808,14]
[341435931,1730881846476,-500.0,0.00037808,14]
[341435932,1730881846485,-500.0,0.00037808,14]
[341435933,1730881846495,-471.25924894,0.00037808,14]
[341435934,1730881846506,-426.63415381,0.00037808,14]
[341435935,1730881846516,-500.0,0.00037808,14]
[341435936,1730881846525,-500.0,0.00037808,14]
[341435937,1730881846535,-502.05730589,0.00037808,14]
[341435938,1730881846544,-500.0,0.00037808,14]
[341435939,1730881846555,-500.0,0.00037808,14]
[341435940,1730881846565,-616.55562976,0.00037808,14]
[341435941,1730881846575,-221.16266661,0.00037808,14]
[341435942,1730881846587,-278.83733339,0.00037808,14]
[341435943,1730881846600,-1180.88904661,0.00037808,14]
[341435944,1730881846664,-819.11095339,0.00037808,14]
[341435945,1730881846675,-500.0,0.00037808,14]
[341435946,1730881846685,-266.98,0.00037808,14]
[341435947,1730881846695,-500.0,0.00037808,14]
[341435948,1730881846704,-505.54999062,0.00037808,14]
[341435949,1730881846714,-556.87652387,0.00037808,14]
[341435950,1730881846724,-503.69881735,0.00037808,14]
[341435951,1730881846733,-500.0,0.00037808,14]
[341435952,1730881846743,-500.0,0.00037808,14]
[341435953,1730881846753,-517.02,0.00037808,14]
[341435954,1730881846762,-500.0,0.00037808,14]
[341435955,1730881846772,-500.0,0.00037808,14]
[341435956,1730881846781,-500.0,0.00037808,14]
[341435957,1730881846790,-500.0,0.00037808,14]
[341435958,1730881846800,-500.0,0.00037808,14]
[341435959,1730881846809,-500.0,0.00037808,14]
[341435960,1730881846818,-500.0,0.00037808,14]
[341435961,1730881846828,-500.0,0.00037808,14]
[341435962,1730881846837,-500.0,0.00037808,14]
[341435963,1730881846846,-500.0,0.00037808,14]
[341435964,1730881846856,-500.0,0.00037808,14]
[341435965,1730881846865,-500.0,0.00037808,14]
[341435966,1730881846874,-239.76,0.00037808,14]
[341435967,1730881846883,-500.0,0.00037808,14]
[341435968,1730881846892,-500.0,0.00037808,14]
[341435969,1730881846901,-500.0,0.00037808,14]
[341435970,1730881846910,-500.0,0.00037808,14]
[341435971,1730881846920,-500.0,0.00037808,14]
[341435972,1730881846929,-500.0,0.00037808,14]
[341435973,1730881846938,-500.0,0.00037808,14]
[341435974,1730881846947,-500.0,0.00037808,14]
[341435975,1730881846956,-500.0,0.00037808,14]
[341435976,1730881846965,-500.0,0.00037808,14]
[341435977,1730881846975,-500.0,0.00037808,14]
[341435978,1730881846984,-500.0,0.00037808,14]
[341435979,1730881846994,-500.0,0.00037808,14]
[341435980,1730881847003,-500.0,0.00037808,14]
[341435981,1730881847013,-500.0,0.00037808,14]
[341435982,1730881847022,-500.0,0.00037808,14]
[341435983,1730881847032,-500.0,0.00037808,14]
[341435984,1730881847041,-505.97826252,0.00037808,14]
[341435985,1730881847050,-566.71,0.00037808,14]
[341435986,1730881847059,-503.62181253,0.00037808,14]
[341435987,1730881847069,-503.71297289,0.00037808,14]
[341435988,1730881847079,-513.42374318,0.00037808,14]
[341435989,1730881847088,-500.0,0.00037808,14]
[341435990,1730881847097,-601.53,0.00037808,14]
[341435991,1730881847106,-500.0,0.00037808,14]
[341435992,1730881847115,-504.16782908,0.00037808,14]
[341435993,1730881847124,-500.0,0.00037808,14]
[341435994,1730881847133,-500.0,0.00037808,14]
[341435995,1730881847143,-500.0,0.00037808,14]
[341435996,1730881847152,-500.0,0.00037808,14]
[341435997,1730881847161,-500.0,0.00037808,14]
[341435998,1730881847170,-500.0,0.00037808,14]
[341435999,1730881847179,-535.13,0.00037808,14]
[341436000,1730881847189,-500.0,0.00037808,14]
[341436001,1730881847198,-590.93,0.00037808,14]
[341436002,1730881847207,-530.43,0.00037808,14]
[341436003,1730881847217,-500.0,0.00037808,14]
[341436004,1730881847226,-208.75,0.00037808,14]
[341436005,1730881847235,-500.0,0.00037808,14]
[341436006,1730881847244,-224.44,0.00037808,14]
[341436007,1730881847253,-500.0,0.00037808,14]
[341436008,1730881847263,-500.0,0.00037808,14]
[341436009,1730881847272,-500.0,0.00037808,14]
[341436010,1730881847281,-500.0,0.00037808,14]
[341436011,1730881847290,-500.0,0.00037808,14]
[341436012,1730881847301,-500.0,0.00037808,14]
[341436013,1730881847311,-500.0,0.00037808,14]
[341436014,1730881847320,-500.0,0.00037808,14]
[341436015,1730881847329,-500.0,0.00037808,14]
[341436016,1730881847338,-540.73,0.00037808,14]
[341436017,1730881847347,-500.0,0.00037808,14]
[341436018,1730881847356,-537.65,0.00037808,14]
[341436019,1730881847366,-500.0,0.00037808,14]
[341436020,1730881847375,-500.0,0.00037808,14]
[341436021,1730881847384,-500.0,0.00037808,14]
[341436022,1730881847393,-574.37,0.00037808,14]
[341436023,1730881847403,-500.0,0.00037808,14]
[341436024,1730881847413,-500.0,0.00037808,14]
[341436025,1730881847423,-500.0,0.00037808,14]
[341436026,1730881847431,-348.02,0.00037808,14]
[341436027,1730881847441,-517.29,0.00037808,14]
[341436028,1730881847451,-500.0,0.00037808,14]
[341436029,1730881847460,-239.32,0.00037808,14]
[341436030,1730881847469,-500.0,0.00037808,14]
[341436031,1730881847478,-500.0,0.00037808,14]
[341436032,1730881847488,-500.0,0.00037808,14]
[341436033,1730881847498,-562.49874691,0.00037808,14]
[341436034,1730881847507,-500.0,0.00037808,14]
[341436035,1730881847516,-639.54,0.00037808,14]
[341436036,1730881847526,-500.0,0.00037808,14]
[341436037,1730881847535,-500.0,0.00037808,14]
[341436038,1730881847545,-500.0,0.00037808,7]
[341436039,1730881847558,-500.0,0.00037808,14]
[341436040,1730881847567,-597.05,0.00037808,14]
[341436041,1730881847577,-500.0,0.00037808,14]
[341436042,1730881847586,-500.0,0.00037808,14]
[341436043,1730881847595,-500.0,0.00037808,14]
[341436044,1730881847606,-500.0,0.00037808,14]
[341436045,1730881847615,-578.2735803,0.00037808,14]
[341436046,1730881847625,-500.0,0.00037808,14]
[341436047,1730881847634,-500.0,0.00037808,14]
[341436048,1730881847645,-500.0,0.00037808,14]
[341436049,1730881847654,-500.0,0.00037808,14]
[341436050,1730881847663,-500.0,0.00037808,14]
[341436051,1730881847671,-500.0,0.00037808,14]
[341436052,1730881847684,-500.0,0.00037808,14]
[341436053,1730881847693,-500.0,0.00037808,14]
[341436054,1730881847702,-500.0,0.00037808,14]
[341436055,1730881847712,-500.0,0.00037808,14]
[341436056,1730881847721,-557.95,0.00037808,14]
[341436057,1730881847731,-500.0,0.00037808,14]
[341436058,1730881847741,-500.0,0.00037808,14]
[341436059,1730881847750,-500.0,0.00037808,14]
[341436060,1730881847953,-500.0,0.00037808,14]
[341436061,1730881847962,-561.28901247,0.00037808,14]
[341436062,1730881847973,-500.0,0.00037808,14]
[341436063,1730881847983,-319.48,0.00037808,14]
[341436064,1730881847992,-500.0,0.00037808,14]
[341436065,1730881848002,-184.45346438,0.00037808,14]
[341436066,1730881848011,-500.0,0.00037808,14]
[341436067,1730881848022,-614.58,0.00037808,14]
[341436068,1730881848031,-500.0,0.00037808,14]
[341436069,1730881848041,-500.0,0.00037808,14]
[341436070,1730881848052,-247.9,0.00037808,14]
[341436071,1730881848063,-500.0,0.00037808,14]
[341436072,1730881848073,-350.75752683,0.00037808,14]
[341436073,1730881848082,-500.0,0.00037808,7]
[341436074,1730881848092,-500.0,0.00037808,14]
[341436075,1730881848102,-500.0,0.00037808,14]
[341436076,1730881848111,-500.0,0.00037808,14]
[341436077,1730881848121,-500.0,0.00037808,14]
[341436078,1730881848130,-500.0,0.00037808,14]
[341436079,1730881848140,-500.0,0.00037808,14]
[341436080,1730881848149,-500.0,0.00037808,14]
[341436081,1730881848159,-500.0,0.00037808,14]
[341436082,1730881848169,-500.0,0.00037808,14]
[341436083,1730881848178,-500.0,0.00037808,14]
[341436084,1730881848187,-500.0,0.00037808,14]
[341436085,1730881848196,-500.0,0.00037808,14]
[341436086,1730881848205,-500.0,0.00037808,14]
[341436087,1730881848214,-574.61,0.00037808,14]
[341436088,1730881848224,-500.0,0.00037808,14]
[341436089,1730881848233,-500.0,0.00037808,2]
[341436090,1730881848242,-500.0,0.00037808,14]
[341436091,1730881848252,-500.0,0.00037808,14]
[341436092,1730881848261,-500.0,0.00037808,14]
[341436093,1730881848270,-500.0,0.00037808,14]
[341436094,1730881848279,-453.24,0.00037808,14]
[341436095,1730881848289,-500.0,0.00037808,14]
[341436096,1730881848299,-619.14,0.00037808,14]
[341436097,1730881848310,-551.39,0.00037808,14]
[341436098,1730881848319,-500.0,0.00037808,14]
[341436099,1730881848328,-567.56,0.00037808,14]
[341436100,1730881848338,-553.83,0.00037808,14]
[341436101,1730881848347,-500.0,0.00037808,14]
[341436102,1730881848357,-500.0,0.00037808,14]
[341436103,1730881848366,-500.0,0.00037808,14]
[341436104,1730881848375,-500.0,0.00037808,14]
[341436105,1730881848385,-488.52,0.00037808,14]
[341436106,1730881848395,-500.0,0.00037808,14]
[341436107,1730881848404,-500.0,0.00037808,14]
[341436108,1730881848414,-500.0,0.00037808,14]
[341436109,1730881848423,-500.0,0.00037808,14]
[341436110,1730881848432,-452.23878411,0.00037808,14]
[341436111,1730881848441,-500.0,0.00037808,14]
[341436112,1730881848451,-416.2075007,0.00037808,14]
[341436113,1730881848461,-500.0,0.00037808,14]
[341436114,1730881848470,-500.0,0.00037808,14]
[341436115,1730881848479,-500.0,0.00037808,14]
[341436116,1730881848489,-500.0,0.00037808,14]
[341436117,1730881848499,-500.0,0.00037808,14]
[341436118,1730881848508,-500.0,0.00037808,14]
[341436119,1730881848518,-500.0,0.00037808,14]
[341436120,1730881848527,-624.71,0.00037808,14]
[341436121,1730881848536,-500.0,0.00037808,14]
[341436122,1730881848546,-500.0,0.00037808,14]
[341436123,1730881848557,-300.0,0.00037808,14]
[341436124,1730881848567,-500.0,0.00037808,14]
[341436125,1730881848576,-500.0,0.00037808,14]
[341436126,1730881848586,-500.0,0.00037808,14]
[341436127,1730881848596,-500.0,0.00037808,14]
[341436128,1730881848610,-540.39779943,0.00037808,14]
[341436129,1730881848620,-500.0,0.00037808,14]
[341436130,1730881848629,-500.0,0.00037808,14]
[341436131,1730881848639,-500.0,0.00037808,14]
[341436132,1730881848648,-518.64220621,0.00037808,14]
[341436133,1730881848658,-500.0,0.00037808,14]
[341436134,1730881848668,-515.38324214,0.00037808,14]
[341436135,1730881848680,-500.0,0.00037808,14]
[341436136,1730881848690,-500.0,0.00037808,14]
[341436137,1730881848699,-500.0,0.00037808,14]
[341436138,1730881848708,-521.95036503,0.00037808,14]
[341436139,1730881848718,-505.97554443,0.00037808,14]
[341436140,1730881848727,-500.0,0.00037808,14]
[341436141,1730881848736,-504.89297831,0.00037808,14]
[341436142,1730881848746,-518.97278949,0.00037808,14]
[341436143,1730881848756,-500.0,0.00037808,14]
[341436144,1730881848766,-279.61146515,0.00037808,14]
[341436145,1730881848776,-500.0,0.00037808,14]
[341436146,1730881848785,-500.0,0.00037808,14]
[341436147,1730881848795,-500.0,0.00037808,14]
[341436148,1730881848807,-500.0,0.00037808,14]
[341436149,1730881848817,-500.0,0.00037808,14]
[341436150,1730881848826,-500.0,0.00037808,14]
[341436151,1730881848835,-500.0,0.00037808,14]
[341436152,1730881848844,-500.0,0.00037808,14]
[341436153,1730881848854,-500.0,0.00037808,14]
[341436154,1730881848864,-500.0,0.00037808,14]
[341436155,1730881848874,-500.0,0.00037808,14]
[341436156,1730881848884,-500.0,0.00037808,14]
[341436157,1730881848893,-500.0,0.00037808,14]
[341436158,1730881848903,-519.65946145,0.00037808,14]
[341436159,1730881848913,-545.41,0.00037808,14]
[341436160,1730881848923,-500.0,0.00037808,14]
[341436161,1730881848933,-576.3387553,0.00037808,14]
[341436162,1730881848943,-500.0,0.00037808,14]
[341436163,1730881848952,-500.0,0.00037808,14]
[341436164,1730881848962,-500.0,0.00037808,14]
[341436165,1730881848972,-500.0,0.00037808,14]
[341436166,1730881848981,-500.0,0.00037808,14]
[341436167,1730881848991,-157.93153871,0.00037808,14]
[341436168,1730881849000,-500.0,0.00037808,14]
[341436169,1730881849010,-522.24,0.00037808,14]
[341436170,1730881849019,-503.04329247,0.00037808,14]
[341436171,1730881849029,-505.61767787,0.00037808,14]
[341436172,1730881849039,-500.0,0.00037808,14]
[341436173,1730881849049,-500.0,0.00037808,14]
[341436174,1730881849060,-500.0,0.00037808,14]
[341436175,1730881849071,-602.25,0.00037808,14]
[341436176,1730881849081,-500.0,0.00037808,14]
[341436177,1730881849091,-500.0,0.00037808,14]
[341436178,1730881849101,-500.0,0.00037808,14]
[341436179,1730881849110,-500.0,0.00037808,14]
[341436180,1730881849120,-500.0,0.00037808,14]
[341436181,1730881849130,-500.0,0.00037808,14]
[341436182,1730881849140,-500.0,0.00037808,14]
[341436183,1730881849150,-500.0,0.00037808,14]
[341436184,1730881849160,-500.0,0.00037808,14]
[341436185,1730881849170,-500.0,0.00037808,14]
[341436186,1730881849180,-500.0,0.00037808,14]
[341436187,1730881849190,-500.0,0.00037808,14]
[341436188,1730881849200,-306.01972538,0.00037808,14]
[341436189,1730881849210,-500.0,0.00037808,14]
[341436190,1730881849220,-500.0,0.00037808,14]
[341436191,1730881849230,-500.0,0.00037808,14]
[341436192,1730881849240,-500.0,0.00037808,14]
[341436193,1730881849250,-500.0,0.00037808,14]
[341436194,1730881849260,-500.0,0.00037808,14]
[341436195,1730881849269,-500.0,0.00037808,14]
[341436196,1730881849279,-500.0,0.00037808,14]
[341436197,1730881849288,-500.0,0.00037808,14]
[341436198,1730881849298,-500.0,0.00037808,14]
[341436199,1730881849308,-500.0,0.00037808,14]
[341436200,1730881849318,-500.0,0.00037808,14]
[341436201,1730881849327,-500.0,0.00037808,14]
[341436202,1730881849337,-500.0,0.00037808,14]
[341436203,1730881849346,-500.0,0.00037808,14]
[341436204,1730881849356,-500.0,0.00037808,14]
[341436205,1730881849365,-500.0,0.00037808,14]
[341436206,1730881849375,-500.0,0.00037808,14]
[341436207,1730881849385,-500.0,0.00037808,14]
[341436208,1730881849394,-596.5,0.00037808,14]
[341436209,1730881849404,-500.0,0.00037808,14]
[341436210,1730881849413,-500.0,0.00037808,14]
[341436211,1730881849423,-500.0,0.00037808,14]
[341436212,1730881849432,-500.0,0.00037808,14]
[341436213,1730881849441,-500.0,0.00037808,14]
[341436214,1730881849451,-500.0,0.00037808,14]
[341436215,1730881849460,-551.67512406,0.00037808,14]
[341436216,1730881849470,-500.0,0.00037808,14]
[341436217,1730881849479,-500.0,0.00037808,14]
[341436218,1730881849488,-500.0,0.00037808,14]
[341436219,1730881849498,-500.0,0.00037808,14]
[341436220,1730881849507,-500.0,0.00037808,14]
[341436221,1730881849517,-500.0,0.00037808,14]
[341436222,1730881849526,-500.0,0.00037808,14]
[341436223,1730881849536,-500.0,0.00037808,14]
[341436224,1730881849545,-500.0,0.00037808,14]
[341436225,1730881849554,-500.0,0.00037808,14]
[341436226,1730881849563,-500.0,0.00037808,14]
[341436227,1730881849573,-559.64,0.00037808,14]
[341436228,1730881849582,-500.0,0.00037808,14]
[341436229,1730881849591,-500.0,0.00037808,14]
[341436230,1730881849603,-500.0,0.00037808,14]
[341436231,1730881849613,-500.0,0.00037808,14]
[341436232,1730881849623,-500.0,0.00037808,14]
[341436233,1730881849632,-503.41,0.00037808,14]
[341436234,1730881849643,-500.0,0.00037808,14]
[341436235,1730881849652,-500.0,0.00037808,14]
[341436236,1730881849662,-500.0,0.00037808,14]
[341436237,1730881849671,-500.0,0.00037808,14]
[341436238,1730881849681,-500.0,0.00037808,14]
[341436239,1730881849691,-500.0,0.00037808,14]
[341436240,1730881849700,-500.0,0.00037808,14]
[341436241,1730881849709,-554.99,0.00037808,14]
[341436242,1730881849718,-571.89214607,0.00037808,14]
[341436243,1730881849727,-500.0,0.00037808,14]
[341436244,1730881849737,-500.0,0.00037808,14]
[341436245,1730881849747,-500.0,0.00037808,14]
[341436246,1730881849756,-500.0,0.00037808,14]
[341436247,1730881849766,-353.97,0.00037808,14]
[341436248,1730881849775,-500.0,0.00037808,14]
[341436249,1730881849784,-500.0,0.00037808,14]
[341436250,1730881849794,-228.78,0.00037808,14]
[341436251,1730881849805,-557.74,0.00037808,14]
[341436252,1730881849817,-500.0,0.00037808,14]
[341436253,1730881849826,-500.0,0.00037808,14]
[341436254,1730881849837,-168.27,0.00037808,14]
[341436255,1730881849847,-598.06,0.00037808,14]
[341436256,1730881849856,-621.29807047,0.00037814,2]
[341436257,1730881849866,-1046.72,0.00037823,2]
[341436258,1730881849875,-500.0,0.00037855,14]
[341436259,1730881849885,-598.01037496,0.00037855,14]
[341436260,1730881849894,-500.0,0.00037855,14]
[341436261,1730881849903,-500.0,0.00037855,14]
[341436262,1730881849913,-500.0,0.00037855,14]
[341436263,1730881849922,-500.0,0.00037855,14]
[341436264,1730881849932,-500.0,0.00037855,14]
[341436265,1730881849941,-500.0,0.00037855,14]
[341436266,1730881849951,-500.0,0.00037855,14]
[341436267,1730881849960,-500.0,0.00037855,14]
[341436268,1730881849969,-500.0,0.00037855,14]
[341436269,1730881849979,-500.0,0.00037855,14]
[341436270,1730881849989,-500.0,0.00037855,14]
[341436271,1730881849999,-247.91498014,0.00037855,14]
[341436272,1730881850008,-359.49634,0.00037855,2]
[341436273,1730881850017,-161.6689208,0.00037873,5]
[341436274,1730881850026,-1773.2505,0.0003788,2]
[341436275,1730881850036,-18743.91410562,0.0003789,2]
[341436276,1730881850045,-500.0,0.00037899,14]
[341436277,1730881850057,-1601.78,0.00037899,14]
[341436278,1730881850067,-457.28,0.00037899,14]
[341436279,1730881850076,-500.0,0.00037899,14]
[341436280,1730881850086,-491.6,0.00037899,14]
[341436281,1730881850096,-500.0,0.00037899,14]
[341436282,1730881850107,-500.0,0.00037899,14]
[341436283,1730881850117,-158.85452305,0.00037899,7]
[341436284,1730881850126,-165.99564774,0.000379,11]
[341436285,1730881850136,-3045.58773893,0.000379,2]
[341436286,1730881850145,-200.0,0.000379,30]
[341436287,1730881850155,-200.0,0.000379,2]
[341436288,1730881850165,-167.63945595,0.000379,2]
[341436289,1730881850175,-158.85452305,0.000379,7]
[341436290,1730881850184,-13076.53959516,0.000379,2]
[341436291,1730881850193,-850.0680623,0.00037914,2]
[341436292,1730881850202,-13610.0,0.00037937,2]
[341436293,1730881850211,-313.82,0.00037949,14]
[341436294,1730881850221,-579.91,0.00037949,14]
[341436295,1730881850230,-326.94,0.00037949,14]
[341436296,1730881850239,-500.0,0.00037949,14]
[341436297,1730881850249,-520.55656879,0.00037949,14]
[341436298,1730881850258,-500.0,0.00037949,14]
[341436299,1730881850267,-15804.15875643,0.0003795,15]
[341436300,1730881850493,-3818.99656806,0.0003795,15]
[341436301,1730881850659,-71.37080536,0.0003795,15]
[341436302,1730881850672,-60305.63347595,0.0003795,15]
[341436303,1730881850681,-500.0,0.00037961,14]